Workbook

Sheet Testo_esercizio
F2: X = numero di dipendenti
F3: Y=vendite in milioni di Euro

Sheet Dati
C1: X = numero di dipendenti | F1: Y=vendite in milioni di Euro
C3: xi | D3: yi | E3: xi^2 | F3: yi^2 | G3: xi*yi | H3: Valori teorici | I3: Residui ei | J3: Residui al quadrato | K3: (Valori teorici -media)^2 | L3: (Valori effettivi-media)^2 | M3: xiei | N3: (xi-M(x))yi | O3: (xi-M(x))^2
B4: A | C4: 10 | D4: 1.9 | E4: =C4^2 -> 100 | F4: =D4^2 -> 3.61 | G4: =C4*D4 -> 19 | H4: =D$16+I$16*C4 -> 1.810714286 | I4: =D4-H4 -> 0.08928571429 | J4: =I4^2 -> 0.007971938776 | K4: =(H4-H$11/G$13)^2 -> 1.41440051 | L4: =(D4-D$11/G$13)^2 -> 1.21 | M4: =C4*I4 -> 0.8928571429 | N4: =(C4-AVERAGE(C$4:C$10))*D4 -> -11.4 | O4: =(C4-AVERAGE(C$4:C$10))^2 -> 36
B5: B | C5: 18 | D5: 3.1 | E5: =C5^2 -> 324 | F5: =D5^2 -> 9.61 | G5: =C5*D5 -> 55.8 | H5: 3.396428571 | I5: =D5-H5 -> -0.2964285714 | J5: =I5^2 -> 0.08786989796 | K5: =(H5-H$11/G$13)^2 -> 0.1571556122 | L5: =(D5-D$11/G$13)^2 -> 0.01 | M5: =C5*I5 -> -5.335714286 | N5: =(C5-AVERAGE(C$4:C$10))*D5 -> 6.2 | O5: =(C5-AVERAGE(C$4:C$10))^2 -> 4
B6: C | C6: 20 | D6: 3.2 | E6: 400 | F6: 10.24 | G6: 64 | H6: 3.792857143 | I6: -0.5928571429 | J6: 0.3514795918 | K6: 0.628622449 | L6: 0.04 | M6: -11.85714286 | N6: 12.8 | O6: 16
B7: D | C7: 8 | D7: 1.5 | E7: 64 | F7: 2.25 | G7: 12 | H7: 1.414285714 | I7: 0.08571428571 | J7: 0.007346938776 | K7: 2.514489796 | L7: 2.25 | M7: 0.6857142857 | N7: -12 | O7: 64
B8: E | C8: 30 | D8: 6.2 | E8: 900 | F8: 38.44 | G8: 186 | H8: 5.775 | I8: 0.425 | J8: 0.180625 | K8: 7.700625 | L8: 10.24 | M8: 12.75 | N8: 86.8 | O8: 196
B9: F | C9: 12 | D9: 2.8 | E9: 144 | F9: 7.84 | G9: 33.6 | H9: 2.207142857 | I9: 0.5928571429 | J9: 0.3514795918 | K9: 0.628622449 | L9: 0.04 | M9: 7.114285714 | N9: -11.2 | O9: 16
B10: G | C10: 14 | D10: 2.3 | E10: 196 | F10: 5.29 | G10: 32.2 | H10: 2.603571429 | I10: -0.3035714286 | J10: 0.09215561224 | K10: 0.1571556122 | L10: 0.49 | M10: -4.25 | N10: -4.6 | O10: 4
B11: Tot. | C11: =SUM(C4:C10) -> 112 | D11: 21 | E11: 2128 | F11: 77.28 | G11: 402.6 | H11: 21 | I11: -8.881784197e-16 | J11: 1.078928571 | K11: 13.20107143 | L11: 14.28 | M11: =SUM(M4:M10) -> 1.065814104e-14 | N11: =SUM(N4:N10) -> 66.6 | O11: =SUM(O4:O10) -> 336
H12: Oss: i valori teorici sono interpretabili come le medie delle variabili casuali Y_1,…, Y_7 che hanno generato i dati osservati riportati nella zona D4:D10
F13: n= | G13: 7
C16: a= | D16: =(D11*E11-C11*G11)/(G13*E11-C11^2) -> -0.1714285714 | H16: b= | I16: =(G13*G11-C11*D11)/(G13*E11-C11^2) -> 0.1982142857
E20: s= | F20: =SQRT(J11/(G13-2)) -> 0.4645274096 | I20: s(b)= | J20: =F20/SQRT(O11) -> 0.02534204782 | M20: s(a)= | N20: =F20*SQRT(1/G13+AVERAGE(C4:C10)^2/O11) -> 0.4418537019
F22: =STEYX(D4:D10,C4:C10) -> 0.4645274096
D24: Modello di regressione tramite la funzione REGR.LIN | I24: t(b)= | J24: =I16/J20 -> 7.82155756 | M24: t(a)= | N24: =D16/N20 -> -0.3879758633
E25: =LINEST(D4:D10,C4:C10,TRUE,TRUE) -> 0.1982142857 | F25: -0.1714285714
E26: 0.02534204782 | F26: 0.4418537019
E27: 0.9244447779 | F27: 0.4645274096 | I27: p value = | J27: =TDIST(J24,$G13-2,2) -> 0.0005478148541 | K27: ==> rifiuto decisamente H0:beta=0 | M27: p value = | N27: =TDIST(ABS(N24),$G13-2,2) -> 0.7140019105 | O27: ==>accetto l'ipotesi H0:alpha=0
E28: 61.17676266 | F28: 5
E29: 13.20107143 | F29: 1.078928571
I32: t0.025(5)
C33: Modello di regressione tramite il componente aggiuntivo di Excel Analisi dei dati | I33: t0.975(5) | J33: =TINV(0.05,5) -> 2.570581836 | M33: Estremo inf. intervallo confidenza di α | N33: Estremo sup. intervallo confidenza di α
L34: α | M34: =D16-N20*J33 -> -1.307249672 | N34: =D16+N20*J33 -> 0.9643925287
C36: OUTPUT RIEPILOGO | I36: Estremo inf. intervallo confidenza | J36: Estremo sup. intervallo confidenza
H37: β
C38: Statistica della regressione
C39: R multiplo | D39: 0.9614805135 | I39: =I16-J33*J20 -> 0.1330704779 | J39: =I16+J33*J20 -> 0.2633580935
C40: R al quadrato | D40: 0.9244447779
C41: R al quadrato corretto | D41: 0.9093337335 | F41: =FDIST(G47,D47,D48) -> 0.0005478148541
C42: Errore standard | D42: 0.4645274096 | M42: 0.025 | N42: 0.975
C43: Osservazioni | D43: 7
M44: Quantile 0.975 di una v.a. Chi quadrato con n-2 gradi di libertà | N44: Quantile 0.025 di una v.a. Chi quadrato con n-2 gradi di libertà
C45: ANALISI VARIANZA
D46: gdl | E46: SQ | F46: MQ | G46: F | H46: Significatività F | M46: =CHIINV(M42,$G13-2) -> 12.83250199 | N46: =CHIINV(N42,$G13-2) -> 0.8312116135
C47: Regressione | D47: 1 | E47: 13.20107143 | F47: 13.20107143 | G47: 61.17676266 | H47: 0.0005478148541 | M47: Estremo inf. intervallo confidenza di σ^2 | N47: Estremo sup. intervallo confidenza di σ^2
C48: Residuo | D48: 5 | E48: 1.078928571 | F48: 0.2157857143 | L48: σ^2
C49: Totale | D49: 6 | E49: 14.28
M50: =$J11/M46 -> 0.08407780275 | N50: =$J11/N46 -> 1.298019125
D51: Coefficienti | E51: Errore standard | F51: Stat t | G51: Valore di significatività | H51: Inferiore 95% | I51: Superiore 95%
C52: Intercetta | D52: -0.1714285714 | E52: 0.4418537019 | F52: -0.3879758633 | G52: 0.7140019106 | H52: -1.307249671 | I52: 0.9643925283
C53: Variabile X 1 | D53: 0.1982142857 | E53: 0.02534204782 | F53: 7.82155756 | G53: 0.0005478148541 | H53: 0.1330704779 | I53: 0.2633580935
C57: OUTPUT RESIDUI
C59: Osservazione | D59: Y prevista | E59: Residui
C60: 1 | D60: 1.810714286 | E60: 0.08928571429
C61: 2 | D61: 3.396428571 | E61: -0.2964285714
C62: 3 | D62: 3.792857143 | E62: -0.5928571429
C63: 4 | D63: 1.414285714 | E63: 0.08571428571
C64: 5 | D64: 5.775 | E64: 0.425
C65: 6 | D65: 2.207142857 | E65: 0.5928571429
C66: 7 | D66: 2.603571429 | E66: -0.3035714286
L67: 3 diversi modi per calcolare un valore previsto dato x0
L68: y_0 previsto (ossia vendite previste in corrispondenza di un numero di dipendenti pari a 16) | M68: =D16+I16*16 -> 3 | N68: Utilizzando i parametri stimati
M70: =TREND(D4:D10,C4:C10,16,TRUE) -> 3 | N70: Utilizzando la funzione "Tendenza"
D71: VERIFICA DELL'IPOTESI NULLA H0:β=0.25
D72: Notiamo preliminarmente che il valore 0.25 è compreso nell'intervallo al 95%. Ci attendiamo quindi che il risultato del test non risulti significativo al livello di significatività del 5% | M72: =FORECAST(16,D4:D10,C4:C10) -> 3 | N72: Utilizzando la funzione "Previsione"
O74: Varianza errore di previsione=
D75: Test t= | F75: =(I16-0.25)/J20 -> -2.043469993
D77: pvalue del risultato del test | F77: =TDIST(ABS(F75),5,2) -> 0.09644152127 | L77: radice quadrata della varianza dell'errore di previsione sqrt((var(e_0))
N78: =F20*SQRT(1+1/G13+(16-AVERAGE(C4:C10))^2/O11) -> 0.4966006896
M83: Estremo inf. intervallo confidenza | N83: Estremo sup. intervallo confidenza
E85: Funz. di densità della T con 5 gradi di libertà nell'intervallo [-3 3] | F85: Funz. di ripartizione della T con 5 gradi di libertà nell'intervallo [-3 3]
H86: gradi di libertà= | I86: 5
D87: x | M87: =M68-J33*N78 -> 1.723447288 | N87: =M68+J33*N78 -> 4.276552712
D88: -3 | E88: =_xlfn.T.DIST(D88,gdl,FALSE) -> 0.0172925788 | F88: =_xlfn.T.DIST(D88,gdl,TRUE) -> 0.01504962395
D89: -2.98 | E89: 0.01774344422 | F89: 0.01539996342 | L89: Commento: c'è una probabilità pari a 0.95 che le vendite si collochino nell'intervallo 1.72 milioni di euro, 4.28 milioni di Euro quando il numero di dipendenti è pari a 16
D90: -2.96 | E90: 0.01820694497 | F90: 0.01575944595
D91: -2.94 | E91: 0.01868344403 | F91: 0.01612832787
D92: -2.92 | E92: 0.01917331432 | F92: 0.01650687285
D93: -2.9 | E93: 0.01967693889 | F93: 0.01689535213
D94: -2.88 | E94: 0.02019471114 | F94: 0.01729404472
D95: -2.86 | E95: 0.02072703503 | F95: 0.01770323759
D96: -2.84 | E96: 0.0212743253 | F96: 0.0181232259
D97: -2.82 | E97: 0.02183700766 | F97: 0.01855431321
D98: -2.8 | E98: 0.02241551902 | F98: 0.01899681173
D99: -2.78 | E99: 0.02301030767 | F99: 0.01945104249 | L99: Dati di input per rappresentare graficamente l'intervallo di confidenza
D100: -2.76 | E100: 0.02362183351 | F100: 0.01991733561 | L100: x0 | M100: 16
D101: -2.74 | E101: 0.02425056821 | F101: 0.02039603055 | L101: y cappello_0 | M101: =M68 -> 3
D102: -2.72 | E102: 0.02489699544 | F102: 0.02088747629
D103: -2.7 | E103: 0.02556161102 | F103: 0.02139203162 | L103: Err. superiore | M103: =N87-M101 -> 1.276552712
D104: -2.68 | E104: 0.02624492313 | F104: 0.02191006537 | L104: Err. inferiore | M104: =M101-M87 -> 1.276552712
D105: -2.66 | E105: 0.02694745245 | F105: 0.02244195666
D106: -2.64 | E106: 0.02766973235 | F106: 0.02298809514
D107: -2.62 | E107: 0.02841230904 | F107: 0.02354888126
D108: -2.6 | E108: 0.02917574169 | F108: 0.02412472653
D109: -2.58 | E109: 0.02996060257 | F109: 0.02471605378
D110: -2.56 | E110: 0.0307674772 | F110: 0.02532329739
D111: -2.54 | E111: 0.0315969644 | F111: 0.02594690362
D112: -2.52 | E112: 0.03244967639 | F112: 0.0265873308
D113: -2.5 | E113: 0.03332623889 | F113: 0.02724504967
D114: -2.48 | E114: 0.03422729113 | F114: 0.02792054362
D115: -2.46 | E115: 0.03515348591 | F115: 0.02861430893
D116: -2.44 | E116: 0.03610548956 | F116: 0.02932685511
D117: -2.42 | E117: 0.03708398198 | F117: 0.0300587051
D118: -2.4 | E118: 0.03808965653 | F118: 0.0308103956
D119: -2.38 | E119: 0.03912322 | F119: 0.03158247729
D120: -2.36 | E120: 0.04018539249 | F120: 0.03237551512
D121: -2.34 | E121: 0.04127690725 | F121: 0.0331900886
D122: -2.32 | E122: 0.04239851053 | F122: 0.034026792
D123: -2.3 | E123: 0.04355096135 | F123: 0.03488623467
D124: -2.28 | E124: 0.04473503125 | F124: 0.03576904124
D125: -2.26 | E125: 0.04595150397 | F125: 0.03667585193
D126: -2.24 | E126: 0.04720117513 | F126: 0.03760732272
D127: -2.22 | E127: 0.04848485183 | F127: 0.03856412564
D128: -2.2 | E128: 0.04980335215 | F128: 0.03954694895
D129: -2.18 | E129: 0.05115750472 | F129: 0.0405564974
D130: -2.16 | E130: 0.0525481481 | F130: 0.04159349241
D131: -2.14 | E131: 0.05397613016 | F131: 0.04265867225
D132: -2.12 | E132: 0.05544230741 | F132: 0.04375279225
D133: -2.1 | E133: 0.05694754417 | F133: 0.04487662494
D134: -2.08 | E134: 0.05849271183 | F134: 0.04603096022
D135: -2.06 | E135: 0.06007868782 | F135: 0.04721660547
D136: -2.04 | E136: 0.06170635472 | F136: 0.04843438567
D137: -2.02 | E137: 0.06337659909 | F137: 0.04968514351 | H137: ="Pr (T<" & F75 &")=" & _xlfn.T.DIST(F75,5,TRUE) -> Pr (T<-2,04346999310267)=0,0482207606330681
D138: -2 | E138: 0.06509031033 | F138: 0.05096973941
D139: -1.98 | E139: 0.06684837943 | F139: 0.05228905164
D140: -1.96 | E140: 0.06865169758 | F140: 0.05364397625
D141: -1.94 | E141: 0.07050115474 | F141: 0.05503542714
D142: -1.92 | E142: 0.07239763801 | F142: 0.05646433595
D143: -1.9 | E143: 0.07434203003 | F143: 0.05793165205
D144: -1.88 | E144: 0.07633520714 | F144: 0.05943834239
D145: -1.86 | E145: 0.07837803746 | F145: 0.06098539136
D146: -1.84 | E146: 0.08047137894 | F146: 0.06257380063
D147: -1.82 | E147: 0.08261607711 | F147: 0.0642045889
D148: -1.8 | E148: 0.0848129629 | F148: 0.06587879164
D149: -1.78 | E149: 0.08706285016 | F149: 0.06759746076
D150: -1.76 | E150: 0.08936653317 | F150: 0.06936166429
D151: -1.74 | E151: 0.09172478396 | F151: 0.07117248588
D152: -1.72 | E152: =_xlfn.T.DIST(D152,gdl,FALSE) -> 0.09413834949 | F152: =_xlfn.T.DIST(D152,gdl,TRUE) -> 0.07303102441
D153: -1.7 | E153: 0.09660794871 | F153: 0.07493839342
D154: -1.68 | E154: 0.09913426949 | F154: 0.07689572051
D155: -1.66 | E155: 0.1017179654 | F155: 0.07890414671
D156: -1.64 | E156: 0.1043596522 | F156: 0.08096482574
D157: -1.62 | E157: 0.1070599047 | F157: 0.08307892325
D158: -1.6 | E158: 0.1098192527 | F158: 0.08524761591
D159: -1.58 | E159: 0.1126381774 | F159: 0.08747209054
D160: -1.56 | E160: 0.1155171076 | F160: 0.08975354306
D161: -1.54 | E161: 0.1184564154 | F161: 0.09209317738
D162: -1.52 | E162: 0.1214564123 | F162: 0.09449220428
D163: -1.5 | E163: 0.1245173446 | F163: 0.09695184012
D164: -1.48 | E164: 0.1276393895 | F164: 0.0994733055
D165: -1.46 | E165: 0.1308226498 | F165: 0.1020578238
D166: -1.44 | E166: 0.1340671502 | F166: 0.1047066198
D167: -1.42 | E167: 0.1373728318 | F167: 0.1074209177
D168: -1.4 | E168: 0.1407395479 | F168: 0.11020194
D169: -1.38 | E169: 0.1441670589 | F169: 0.113050905
D170: -1.36 | E170: 0.1476550275 | F170: 0.1159690254
D171: -1.34 | E171: 0.1512030137 | F171: 0.1189575062
D172: -1.32 | E172: 0.1548104698 | F172: 0.1220175424
D173: -1.3 | E173: 0.1584767357 | F173: 0.1251503171
D174: -1.28 | E174: 0.1622010338 | F174: 0.1283569988
D175: -1.26 | E175: 0.1659824642 | F175: 0.1316387393
D176: -1.24 | E176: 0.1698199996 | F176: 0.1349966714
D177: -1.22 | E177: 0.1737124812 | F177: 0.1384319057
D178: -1.2 | E178: 0.1776586135 | F178: 0.1419455284
D179: -1.18 | E179: 0.1816569599 | F179: 0.1455385983
D180: -1.16 | E180: 0.1857059389 | F180: 0.1492121443
D181: -1.14 | E181: 0.1898038194 | F181: 0.1529671619
D182: -1.12 | E182: 0.1939487171 | F182: 0.1568046106
D183: -1.1 | E183: 0.1981385908 | F183: 0.1607254105
D184: -1.08 | E184: 0.2023712394 | F184: 0.1647304394
D185: -1.06 | E185: 0.2066442985 | F185: 0.1688205295
D186: -1.04 | E186: 0.2109552381 | F186: 0.1729964639
D187: -1.02 | E187: 0.2153013603 | F187: 0.1772589736
D188: -1 | E188: 0.2196797974 | F188: 0.1816087338
D189: -0.98 | E189: 0.2240875107 | F189: 0.1860463607
D190: -0.96 | E190: 0.2285212901 | F190: 0.1905724081
D191: -0.94 | E191: 0.2329777531 | F191: 0.1951873636
D192: -0.92 | E192: 0.2374533458 | F192: 0.1998916458
D193: -0.9 | E193: 0.2419443436 | F193: 0.2046856002
D194: -0.88 | E194: 0.2464468527 | F194: 0.2095694963
D195: -0.86 | E195: 0.2509568125 | F195: 0.214543524
D196: -0.84 | E196: 0.2554699988 | F196: 0.2196077903
D197: -0.82 | E197: 0.2599820269 | F197: 0.2247623163
D198: -0.8 | E198: 0.2644883568 | F198: 0.2300070335
D199: -0.78 | E199: 0.2689842979 | F199: 0.2353417813
D200: -0.76 | E200: 0.2734650151 | F200: 0.2407663039
D201: -0.74 | E201: 0.277925536 | F201: 0.2462802473
D202: -0.72 | E202: 0.2823607582 | F202: 0.2518831567
D203: -0.7 | E203: 0.2867654576 | F203: 0.2575744742
D204: -0.68 | E204: 0.2911342981 | F204: 0.263353536
D205: -0.66 | E205: 0.2954618417 | F205: 0.2692195708
D206: -0.64 | E206: 0.2997425586 | F206: 0.2751716975
D207: -0.62 | E207: 0.30397084 | F207: 0.2812089236
D208: -0.6 | E208: 0.3081410097 | F208: 0.2873301437
D209: -0.58 | E209: 0.3122473375 | F209: 0.2935341384
D210: -0.56 | E210: 0.3162840532 | F210: 0.2998195731
D211: -0.54 | E211: 0.3202453608 | F211: 0.3061849978
D212: -0.52 | E212: 0.3241254539 | F212: 0.3126288461
D213: -0.5 | E213: 0.3279185313 | F213: 0.3191494358
D214: -0.48 | E214: 0.3316188132 | F214: 0.3257449687
D215: -0.46 | E215: 0.3352205576 | F215: 0.3324135314
D216: -0.44 | E216: =_xlfn.T.DIST(D216,gdl,FALSE) -> 0.3387180777 | F216: =_xlfn.T.DIST(D216,gdl,TRUE) -> 0.3391530962
D217: -0.42 | E217: 0.3421057587 | F217: 0.3459615222
D218: -0.4 | E218: 0.3453780758 | F218: 0.3528365574
D219: -0.38 | E219: 0.3485296111 | F219: 0.35977584
D220: -0.36 | E220: 0.3515550723 | F220: 0.3667769013
D221: -0.34 | E221: 0.3544493092 | F221: 0.3738371681
D222: -0.32 | E222: 0.3572073321 | F222: 0.3809539656
D223: -0.3 | E223: 0.3598243283 | F223: 0.3881245211
... 165 more rows
